[Event "ESTCC U65 2018"]
[Site "Walbrzych"]
[Date "2018.04.16"]
[Round "3"]
[White "Andersson, Kenneth"]
[Black "Andersson, Finn"]
[Result "0-1"]
[ECO "B30"]
[WhiteElo "1763"]
[BlackElo "1719"]
[Annotator "NA RC"]
[PlyCount "110"]
[EventDate "2018.??.??"]
[EventCountry "POL"]
[SourceTitle "playchess.com"]
[Source "ChessBase"]
[SourceQuality "1"]
[WhiteTeam "Sweden"]
[BlackTeam "Denmark"]
[WhiteTeamCountry "SWE"]
[BlackTeamCountry "DEN"]
[TimeControl "40/5400+30:1800+30"]

1. Nf3 {[%emt 0:00:00]} c5 {[%emt 0:00:24]} 2. e4 {[%emt 0:00:08]} Nc6 {[%emt 0:00:10]} 3. c4 {[%emt 0:01:46]} g6 {[%emt 0:00:25]} 4. Nc3 {[%emt 0:00:33]} Bg7 {[%emt 0:00:09]} 5. d3 {[%emt 0:00:47]} d6 {[%emt 0:02:48]} 6. Bf4 {[%emt 0:02:28]} a6 {[%emt 0:05:35]} 7. a4 {[%emt 0:01:21]} Nf6 {[%emt 0:11:55]} 8. Be2 {[%emt 0:00:27]} O-O {[%emt 0:00:22]} 9. O-O {[%emt 0:00:16]} Nh5 {[%emt 0:05:54]} 10. Bd2 {[%emt 0:01:25]} Bg4 {[%emt 0:06:40]} 11. Rb1 {[%emt 0:00:34]} Bxf3 {[%emt 0:07:10]} 12. Bxf3 {[%emt 0:00:14]} Nf6 {[%emt 0:00:07]} 13. Nd5 {[%emt 0:04:13]} e6 {[%emt 0:02:51]} 14. Nxf6+ {[%emt 0:00:44]} Bxf6 {[%emt 0:05:15]} 15. Bc3 {[%emt 0:05:29]} Rb8 {[%emt 0:02:49]} 16. Bg4 {[%emt 0:04:12]} b5 {[%emt 0:13:17]} 17. axb5 axb5 18. Bxf6 {[%emt 0:04:24]} Qxf6 {[%emt 0:00:32]} 19. b3 {[%emt 0:00:30]} b4 {[%emt 0:00:53]} 20. f4 {[%emt 0:01:21]} Qd4+ {[%emt 0:04:04]} 21. Kh1 {[%emt 0:00:04]} Ra8 {[%emt 0:04:00]} 22. h3 {[%emt 0:16:30]} Ra2 {[%emt 0:00:40]} 23. Bf3 {[%emt 0:04:22]} Ne7 {[%emt 0:05:27]} 24. Re1 {[%emt 0:04:35]} Rfa8 {[%emt 0:00:44]} 25. Re2 {[%emt 0:01:24]} Qf6 {[%emt 0:01:50]} 26. e5 {[%emt 0:00:49]} Qxf4 {[%emt 0:02:40]} 27. Bxa8 Rxa8 28. Qf1 {[%emt 0:02:28]} dxe5 {[%emt 0:03:30]} 29. Qxf4 {[%emt 0:01:02]} exf4 {[%emt 0:00:05]} 30. Rf1 {[%emt 0:00:42]} Nf5 {[%emt 0:00:21]} 31. Re5 {[%emt 0:03:54]} Ng3+ {[%emt 0:01:47]} 32. Kg1 {[%emt 0:00:03]} Nxf1 {[%emt 0:00:11]} 33. Kxf1 {[%emt 0:00:27]} Ra3 {[%emt 0:00:20]} 34. Rxc5 {[%emt 0:01:38]} Rxb3 {[%emt 0:00:14]} 35. Ke2 {[%emt 0:01:11]} Kg7 {[%emt 0:05:09]} 36. Rb5 Kf6 37. c5 {[%emt 0:02:32]} Ke5 {[%emt 0:05:44]} 38. c6+ {[%emt 0:03:03]} Kd6 {[%emt 0:00:07]} 39. Rb6 {[%emt 0:00:54]} Rc3 {[%emt 0:03:51]} 40. Rxb4 {[%emt 0:00:57]} e5 {[%emt 0:31:08]} 41. d4 {[%emt 0:31:30]} e4 42. Rb7 f5 {[%emt 0:00:00]} 43. Rxh7 Rxc6 44. Rg7 {[%emt 0:05:43]} Kd5 {[%emt 0:00:00]} 45. Rd7+ {[%emt 0:01:29]} Rd6 {[%emt 0:00:00]} 46. Ra7 {[%emt 0:02:11]} Kxd4 {[%emt 0:00:00]} 47. Ra3 Rb6 48. Ra2 {[%emt 0:04:31]} Kc3 {[%emt 0:00:00]} 49. Ra3+ {[%emt 0:01:11]} Rb3 {[%emt 0:00:00]} 50. Ra6 {[%emt 0:00:24]} Rb2+ {[%emt 0:00:00]} 51. Kf1 {[%emt 0:00:26]} Rb1+ {[%emt 0:00:00]} 52. Ke2 {[%emt 0:00:45]} Rb2+ {[%emt 0:00:00]} 53. Kf1 {[%emt 0:00:15]} Kd3 {[%emt 0:00:00]} 54. Rxg6 {[%emt 0:04:47]} Rb1+ {[%emt 0:00:00]} 55. Kf2 {[%emt 0:00:04]} e3+ 0-1

[Event "ESTCC U65 2018"]
[Site "Walbrzych"]
[Date "2018.04.16"]
[Round "3"]
[White "Lindholm, Pertti"]
[Black "Rintakoski, Pentti"]
[Result "1/2-1/2"]
[ECO "A40"]
[WhiteElo "1624"]
[BlackElo "1797"]
[Annotator "NA RC"]
[PlyCount "46"]
[EventDate "2018.??.??"]
[EventCountry "POL"]
[SourceTitle "playchess.com"]
[Source "ChessBase"]
[SourceQuality "1"]
[WhiteTeam "Finland"]
[BlackTeam "Finland"]
[WhiteTeamCountry "FIN"]
[BlackTeamCountry "FIN"]
[TimeControl "40/5400+30:1800+30"]

1. d4 {[%emt 0:02:35]} e6 {[%emt 0:00:11]} 2. Nf3 {[%emt 0:00:30]} Nf6 {[%emt 0:00:30]} 3. Nc3 {[%emt 0:00:48]} d5 {[%emt 0:00:36]} 4. Bf4 a6 5. e3 {[%emt 0:01:40]} Nbd7 {[%emt 0:00:55]} 6. Bd3 {[%emt 0:00:44]} c5 {[%emt 0:00:41]} 7. dxc5 {[%emt 0:02:32]} Nxc5 {[%emt 0:00:26]} 8. Be2 {[%emt 0:00:40]} Nce4 {[%emt 0:01:08]} 9. Nxe4 {[%emt 0:00:57]} Nxe4 {[%emt 0:00:11]} 10. O-O {[%emt 0:00:56]} Be7 {[%emt 0:00:13]} 11. c4 {[%emt 0:01:19]} Bf6 {[%emt 0:00:41]} 12. Qc2 {[%emt 0:01:13]} Qb6 {[%emt 0:01:13]} 13. Rab1 {[%emt 0:01:06]} O-O {[%emt 0:00:25]} 14. cxd5 {[%emt 0:01:24]} exd5 {[%emt 0:00:17]} 15. Bc7 {[%emt 0:02:01]} Qc6 {[%emt 0:01:06]} 16. Rfc1 {[%emt 0:01:17]} Qxc2 {[%emt 0:00:55]} 17. Rxc2 {[%emt 0:00:03]} Be6 {[%emt 0:00:48]} 18. Nd4 {[%emt 0:01:13]} Bxd4 {[%emt 0:00:42]} 19. exd4 {[%emt 0:04:34]} Nf6 {[%emt 0:01:13]} 20. Rbc1 {[%emt 0:01:30]} Rfc8 {[%emt 0:01:03]} 21. f3 {[%emt 0:02:13]} h6 {[%emt 0:00:29]} 22. Be5 {[%emt 0:01:57]} Rxc2 {[%emt 0:00:40]} 23. Rxc2 {[%emt 0:00:03]} Rc8 {[%emt 0:01:14]} 1/2-1/2

[Event "ESTCC U65 2018"]
[Site "Walbrzych"]
[Date "2018.04.17"]
[Round "4"]
[White "Westerinen, Heikki M J"]
[Black "Just, Joachim"]
[Result "1-0"]
[ECO "C10"]
[WhiteElo "2308"]
[BlackElo "1928"]
[Annotator "NA"]
[PlyCount "81"]
[EventDate "2018.??.??"]
[EventCountry "POL"]
[SourceTitle "playchess.com"]
[Source "ChessBase"]
[SourceQuality "1"]
[WhiteTeam "Finland"]
[BlackTeam "Germany"]
[WhiteTeamCountry "FIN"]
[BlackTeamCountry "GER"]
[TimeControl "40/5400+30:1800+30"]

1. e4 {[%emt 0:00:00]} e6 {[%emt 0:00:15]} 2. d4 {[%emt 0:00:00]} d5 {[%emt 0:00:05]} 3. Nd2 {[%emt 0:00:11]} dxe4 {[%emt 0:00:33]} 4. Nxe4 {[%emt 0:00:18]} Nd7 {[%emt 0:00:25]} 5. Bd3 {[%emt 0:05:29]} Ngf6 {[%emt 0:00:48]} 6. Qe2 {[%emt 0:00:29]} Nxe4 {[%emt 0:01:57]} 7. Bxe4 {[%emt 0:00:10]} Nf6 {[%emt 0:01:12] LiveBook: 18 Games} 8. Bxb7 {[%emt 0:01:34] C10: French with 3 Nc3: Unusual Black 3rd moves and 3...dxe4} Bxb7 {[%emt 0:03:09]} 9. Qb5+ {[%emt 0:00:11]} Nd7 {[%emt 0:01:41]} 10. Qxb7 {[%emt 0:00:19]} Bd6 {[%emt 0:00:29]} 11. Nf3 {[%emt 0:02:10]} O-O {[%emt 0:00:34]} 12. O-O {[%emt 0:00:44]} a5 {[%emt 0:02:42]} 13. Qe4 $146 {[%emt 0:06:14]} ({Predecessor:} 13. a4 Rb8 14. Qa6 Ra8 15. Qe2 c5 16. dxc5 Nxc5 {½-½ (93) Belyakov,B (2486)-Timofeev,A (2549) Sochi 2017}) 13... Nf6 {[%emt 0:02:54]} 14. Qe2 {[%emt 0:00:55]} Qb8 {[%emt 0:04:37]} 15. c4 {[%emt 0:05:07]} c5 {[%emt 0:04:50]} 16. dxc5 {[%emt 0:04:51]} Bxc5 {[%emt 0:00:18]} 17. Bg5 {[%emt 0:02:22]} Nd7 {[%emt 0:04:43]} 18. Rad1 {[%emt 0:01:43]} Qc7 {[%emt 0:05:27]} 19. Nd4 {[%emt 0:08:12]} Bxd4 {[%emt 0:04:22]} 20. Rxd4 {[%emt 0:00:08]} e5 {[%emt 0:00:31]} 21. Rd2 {[%emt 0:04:51]} Rfe8 {[%emt 0:02:46]} 22. Rfd1 {[%emt 0:03:20]} Nf8 {[%emt 0:01:41]} 23. Be3 {[%emt 0:04:29]} Ra6 {[%emt 0:05:06]} 24. c5 {[%emt 0:05:21]} Rg6 {[%emt 0:01:02]} 25. Rd6 {[%emt 0:01:36]} Rge6 {[%emt 0:08:08]} 26. b3 {[%emt 0:05:27]} R6e7 $18 {[%emt 0:06:35]} 27. Qb5 {[%emt 0:04:44]} Rb8 {[%emt 0:04:26]} 28. Qc6 {[%emt 0:00:57]} Qxc6 {[%emt 0:02:17]} 29. Rxc6 {[%emt 0:00:03]} Ra8 {[%emt 0:01:48]} 30. Rcd6 {[%emt 0:01:46]} Ne6 {[%emt 0:02:37]} 31. c6 {[%emt 0:01:59]} Ree8 {[%emt 0:02:47]} 32. Bb6 {[%emt 0:01:22]} Rac8 {[%emt 0:03:37]} 33. Bxa5 {[%emt 0:01:48]} Nd4 {[%emt 0:00:08]} 34. c7 {[%emt 0:00:40]} Kf8 {[%emt 0:01:12]} 35. Rd7 {[%emt 0:03:51]} Kg8 {[%emt 0:02:48]} 36. b4 {[%emt 0:03:30]} Nc6 {[%emt 0:05:02]} 37. Rd8 {[%emt 0:03:05]} Nd4 {[%emt 0:10:04]} 38. a4 {[%emt 0:02:32]} Kf8 {[%emt 0:00:50]} 39. b5 {[%emt 0:02:19]} Ke7 {[%emt 0:00:56]} 40. Rxc8 {[%emt 0:00:00]} Rxc8 {[%emt 0:00:07]} 41. b6 {[%emt 0:03:50]} 1-0

[Event "ESTCC U65 2018"]
[Site "Walbrzych"]
[Date "2018.04.17"]
[Round "4"]
[White "Pushkov, Nikolai"]
[Black "White, Alastair F"]
[Result "1-0"]
[ECO "D26"]
[WhiteElo "2304"]
[BlackElo "2069"]
[Annotator "NA"]
[PlyCount "39"]
[EventDate "2018.??.??"]
[EventCountry "POL"]
[SourceTitle "playchess.com"]
[Source "ChessBase"]
[SourceQuality "1"]
[WhiteTeam "Russia"]
[BlackTeam "Scotland"]
[WhiteTeamCountry "RUS"]
[BlackTeamCountry "SCO"]
[TimeControl "40/5400+30:1800+30"]

1. d4 {[%emt 0:00:00]} d5 {[%emt 0:00:29]} 2. c4 {[%emt 0:00:00]} dxc4 {[%emt 0:00:14]} 3. Nf3 {[%emt 0:00:08]} Nf6 {[%emt 0:00:08]} 4. e3 {[%emt 0:00:09]} e6 {[%emt 0:00:13]} 5. Bxc4 {[%emt 0:00:03]} a6 {[%emt 0:00:23]} 6. a4 {[%emt 0:01:00]} Nbd7 {[%emt 0:04:24]} 7. O-O {[%emt 0:00:53]} c5 {[%emt 0:00:38]} 8. Nc3 {[%emt 0:01:15] LiveBook: 53 Games} b6 {[%emt 0:01:18] D27: Queen's Gambit Accepted: Classical main line: 7 e4!? and 7 a4} (8... cxd4 $14 9. Qxd4 (9. exd4 Bd6 $14) 9... Be7) 9. Qe2 {[%emt 0:04:01]} Qc7 {[%emt 0:05:02]} 10. d5 {[%emt 0:01:34]} e5 {[%emt 0:05:07]} 11. e4 {[%emt 0:00:55]} Bd6 {[%emt 0:00:21]} 12. Nh4 {[%emt 0:01:51]} g6 {[%emt 0:16:42]} 13. Bh6 {[%emt 0:02:04]} Bf8 {[%emt 0:04:58]} 14. Bd2 $146 {[%emt 0:05:37]} ({Predecessor:} 14. Bxf8 Kxf8 15. Qd2 Qd6 16. Qh6+ Kg8 17. h3 {0-1 (48) Richardson,J (2260)-Hansen,L (2570) Copenhagen 1997}) 14... Bg7 {[%emt 0:10:33]} 15. f4 {[%emt 0:01:47]} O-O {[%emt 0:02:03]} 16. f5 {[%emt 0:02:32]} Qd6 {[%emt 0:00:41]} 17. g4 $18 {[%emt 0:00:45]} Re8 {[%emt 0:08:42]} 18. Qf3 {[%emt 0:03:22]} Nf8 {[%emt 0:07:47]} 19. g5 {[%emt 0:01:31]} Nh5 {[%emt 0:00:11]} 20. fxg6 {[%emt 0:00:11]} 1-0

[Event "ESTCC U65 2018"]
[Site "Walbrzych"]
[Date "2018.04.17"]
[Round "4"]
[White "Baum, Bernd"]
[Black "Jorgensen, Brian Jorgen"]
[Result "1-0"]
[ECO "A10"]
[WhiteElo "2290"]
[BlackElo "2255"]
[Annotator "NA"]
[PlyCount "99"]
[EventDate "2018.??.??"]
[EventCountry "POL"]
[SourceTitle "playchess.com"]
[Source "ChessBase"]
[SourceQuality "1"]
[WhiteTeam "Germany"]
[BlackTeam "Denmark"]
[WhiteTeamCountry "GER"]
[BlackTeamCountry "DEN"]
[TimeControl "40/5400+30:1800+30"]

1. c4 {[%emt 0:00:00]} f5 {[%emt 0:00:06]} 2. Nf3 {[%emt 0:00:47]} Nf6 {[%emt 0:00:11]} 3. Nc3 {[%emt 0:00:07]} g6 {[%emt 0:00:19]} 4. d3 {[%emt 0:00:13]} d6 {[%emt 0:01:16] A10: English Opening: Unusual Replies for Black} (4... Bg7 5. e4 d6 6. exf5 Bxf5 7. d4 O-O 8. Bd3 Bg4 9. Be2 Nc6 10. d5 Bxf3 11. Bxf3 Ne5 12. Be2 Qd7 {½-½ (36) Matlakov,M (2701)-Cheparinov,I (2689) Caleta 2017}) 5. e4 {[%emt 0:00:14]} e5 {[%emt 0:01:12] LiveBook: 7 Games} 6. Be2 {[%emt 0:00:58]} Bg7 {[%emt 0:00:24]} 7. exf5 {[%emt 0:02:28]} gxf5 {[%emt 0:00:30]} 8. d4 {[%emt 0:01:22]} e4 {[%emt 0:01:53]} (8... Nc6 $11 {keeps the balance.}) 9. Ng5 {[%emt 0:00:37]} O-O {[%emt 0:02:51]} 10. O-O {[%emt 0:00:54]} Nc6 {[%emt 0:04:11]} 11. Be3 $146 {[%emt 0:01:15]} ({Predecessor:} 11. d5 Ne5 12. f4 Ng6 13. Be3 h6 14. Nh3 c5 15. dxc6 bxc6 {½-½ (45) Haria,R (2100)-Eames,R (2232) England 2014}) 11... Ne7 {[%emt 0:05:18]} 12. d5 {[%emt 0:15:35]} Ng6 {[%emt 0:02:32]} 13. Nh3 {[%emt 0:01:54]} Qe7 {[%emt 0:11:25]} 14. Qd2 {[%emt 0:02:41]} Kh8 {[%emt 0:07:11]} 15. Rae1 {[%emt 0:05:01]} Nd7 {[%emt 0:06:15]} 16. Bg5 {[%emt 0:02:11]} Qf7 {[%emt 0:00:55]} 17. f3 {[%emt 0:14:11]} exf3 {[%emt 0:02:23]} 18. Rxf3 {[%emt 0:00:22]} Nde5 {[%emt 0:00:37]} 19. Rff1 {[%emt 0:02:04]} Bd7 {[%emt 0:01:11]} 20. b3 {[%emt 0:03:51]} Qg8 {[%emt 0:03:08]} 21. Bh5 {[%emt 0:12:18]} a6 {[%emt 0:06:19]} 22. a4 {[%emt 0:01:26]} Rab8 {[%emt 0:08:49]} 23. Nf4 {[%emt 0:07:46]} Nxf4 {[%emt 0:06:39]} 24. Rxf4 $11 {[%emt 0:03:09]} Be8 {[%emt 0:07:29]} 25. Bxe8 {[%emt 0:03:25]} Rbxe8 {[%emt 0:00:12]} 26. Ref1 {[%emt 0:01:24]} Nf7 {[%emt 0:08:24]} 27. Bh4 {[%emt 0:03:00]} Nh6 {[%emt 0:00:12]} 28. Ne2 {[%emt 0:01:46]} Be5 {[%emt 0:00:52]} 29. R4f3 {[%emt 0:00:19]} Ng4 {[%emt 0:00:33]} 30. Bg3 {[%emt 0:00:49]} Qg7 {[%emt 0:03:11]} 31. Rxf5 {[%emt 0:01:50]} Rxf5 {[%emt 0:00:20]} 32. Rxf5 {[%emt 0:00:10]} Bxg3 {[%emt 0:01:56]} 33. Nxg3 {[%emt 0:01:44]} Ne3 {[%emt 0:01:59]} 34. Rf3 {[%emt 0:00:35]} Qa1+ {[%emt 0:02:26]} 35. Nf1 {[%emt 0:00:20]} Nxf1 {[%emt 0:00:09]} 36. Rxf1 {[%emt 0:00:11]} Qe5 {[%emt 0:00:07]} 37. Qf2 {[%emt 0:03:46]} Qe3 {[%emt 0:00:51]} 38. Qxe3 {[%emt 0:00:45]} Rxe3 {[%emt 0:00:02]} 39. Rf3 {[%emt 0:00:10]} Re7 {[%emt 0:00:17]} 40. Kf2 {[%emt 0:00:00]} Kg7 {[%emt 0:00:18]} 41. Re3 {[%emt 0:05:53]} Rf7+ {[%emt 0:00:31]} 42. Ke2 {[%emt 0:00:03]} a5 {[%emt 0:00:49]} 43. Kd3 {[%emt 0:06:01]} b6 {[%emt 0:01:49]} 44. Kc3 {[%emt 0:02:30]} Kg6 {[%emt 0:00:36]} 45. Rg3+ {[%emt 0:06:40]} Kh6 {[%emt 0:00:27]} 46. Rg8 {[%emt 0:01:32]} Re7 {[%emt 0:00:21]} 47. Kd2 {[%emt 0:02:16]} Kh5 {[%emt 0:00:19]} 48. Rg3 {[%emt 0:01:22]} Kh4 {[%emt 0:00:59]} 49. Re3 {[%emt 0:00:51]} Rg7 {[%emt 0:00:37]} 50. Rh3+ {[%emt 0:00:20]} 1-0

[Event "ESTCC U65 2018"]
[Site "Walbrzych"]
[Date "2018.04.17"]
[Round "4"]
[White "Vucenovic, Dragomir"]
[Black "Hedin, Gunnar"]
[Result "1/2-1/2"]
[ECO "A88"]
[WhiteElo "2248"]
[BlackElo "2174"]
[Annotator "NA"]
[PlyCount "104"]
[EventDate "2018.??.??"]
[EventCountry "POL"]
[SourceTitle "playchess.com"]
[Source "ChessBase"]
[SourceQuality "1"]
[WhiteTeam "Switzerland"]
[BlackTeam "Sweden"]
[WhiteTeamCountry "SUI"]
[BlackTeamCountry "SWE"]
[TimeControl "40/5400+30:1800+30"]

1. d4 {[%emt 0:00:00]} f5 {[%emt 0:00:14]} 2. Nf3 {[%emt 0:00:05]} Nf6 {[%emt 0:00:12]} 3. g3 {[%emt 0:00:14]} g6 {[%emt 0:00:13]} 4. Bg2 {[%emt 0:00:17]} Bg7 {[%emt 0:00:13]} 5. O-O {[%emt 0:00:17]} O-O {[%emt 0:00:30]} 6. c4 {[%emt 0:00:11]} d6 {[%emt 0:00:12]} 7. Nc3 {[%emt 0:00:12]} c6 {[%emt 0:00:16]} 8. Qb3 {[%emt 0:00:27]} Qb6 {[%emt 0:03:10]} 9. Qc2 {[%emt 0:01:27] LiveBook: 6 Games} Qc7 {[%emt 0:08:34]} 10. Bf4 {[%emt 0:03:38] A88: Dutch Defence: Leningrad System: 5 Nf3 0-0 6 0-0 d6 7 Nc3 c6} (10. b3 a5 11. Bb2 Na6 12. Rad1 e5 13. dxe5 dxe5 14. Na4 Ne4 15. Nd2 Nec5 16. Nxc5 Nxc5 17. a3 e4 18. Bxg7 Qxg7 19. b4 axb4 20. axb4 {0-1 (44) Beradze,I (2416)-Bortnyk,O (2557) Ureki 2015}) 10... Nh5 {[%emt 0:01:26]} 11. Rad1 $146 {[%emt 0:08:11]} ({Find the theoretical novelty and annotate with similar games:} 11. Bd2 e5 12. dxe5 dxe5 13. e3 Be6 14. b3 Qe7 15. Rac1 Na6 16. Na4 Rfd8 17. Bc3 b5 {0-1 (41) Jakovljevic,Z (2021)-Svicevic,R (2263) Belgrade 2016}) 11... Nxf4 12. gxf4 Nd7 13. d5 Nf6 14. Nd4 Bd7 15. e3 Rae8 16. Rd2 e6 17. dxe6 Bxe6 18. Nxe6 Rxe6 19. Rfd1 Rfe8 20. a3 a6 21. b4 Qe7 22. Re1 Kh8 23. b5 axb5 24. cxb5 d5 25. bxc6 bxc6 $15 26. Rd3 Ra8 27. Ne2 Ne4 28. Bxe4 fxe4 29. Rb3 c5 30. Reb1 Rc6 31. Rb8+ Rc8 32. R1b7 Qe6 33. Rxa8 Rxa8 34. Qxc5 Qg4+ 35. Ng3 Qd1+ 36. Kg2 Qf3+ 37. Kh3 h5 38. Rxg7 Qg4+ 39. Kg2 Kxg7 40. Qxd5 Re8 41. h3 Qe6 42. Qg5 Kf7 43. f5 gxf5 44. Qxh5+ Qg6 45. Qxf5+ Qxf5 46. Nxf5 Kf6 47. Ng3 Ke5 48. h4 Ra8 49. Ne2 Rxa3 50. h5 Ra6 51. Kg3 Rf6 52. Nf4 Kf5 1/2-1/2

[Event "ESTCC U65 2018"]
[Site "Walbrzych"]
[Date "2018.04.17"]
[Round "4"]
[White "Ackermann, Hans Werner"]
[Black "Olesen, Poul Erik Norgaard"]
[Result "1-0"]
[ECO "A05"]
[WhiteElo "2211"]
[BlackElo "2005"]
[Annotator "ChessBase"]
[PlyCount "119"]
[EventDate "2018.??.??"]
[EventCountry "POL"]
[SourceTitle "playchess.com"]
[Source "ChessBase"]
[SourceQuality "1"]
[WhiteTeam "Germany"]
[BlackTeam "Denmark"]
[WhiteTeamCountry "GER"]
[BlackTeamCountry "DEN"]
[TimeControl "40/5400+30:1800+30"]

1. Nf3 {[%emt 0:00:00]} Nf6 {[%emt 0:00:26]} 2. c4 {[%emt 0:00:20]} g6 {[%emt 0:00:28]} 3. b3 {[%emt 0:01:38]} Bg7 {[%emt 0:00:17]} 4. Bb2 {[%emt 0:00:02]} O-O {[%emt 0:00:52]} 5. g3 {[%emt 0:01:40]} d6 {[%emt 0:02:43]} 6. d4 {[%emt 0:02:49]} c5 {[%emt 0:04:37]} 7. Bg2 {[%emt 0:02:22]} cxd4 {[%emt 0:11:13]} 8. Nxd4 {[%emt 0:02:17]} Qc7 {[%emt 0:04:25]} 9. Nc3 {[%emt 0:06:10]} Nc6 {[%emt 0:06:17]} 10. O-O {[%emt 0:02:32]} Nxd4 {[%emt 0:03:50]} 11. Qxd4 {[%emt 0:01:18]} Ng4 {[%emt 0:06:39]} 12. Qd2 {[%emt 0:01:41]} Qa5 {[%emt 0:03:10]} 13. h3 {[%emt 0:10:19]} Ne5 {[%emt 0:01:38]} 14. Rad1 {[%emt 0:02:55]} Nc6 {[%emt 0:05:41]} 15. g4 {[%emt 0:10:01]} h5 {[%emt 0:06:42]} 16. g5 {[%emt 0:12:18]} Be6 {[%emt 0:04:55]} 17. Ba1 {[%emt 0:05:58]} a6 {[%emt 0:08:54]} 18. Nd5 {[%emt 0:08:01]} Qxd2 {[%emt 0:08:26]} 19. Rxd2 {[%emt 0:00:17]} Bxd5 {[%emt 0:00:37]} 20. Bxd5 {[%emt 0:00:46]} Rfc8 {[%emt 0:02:21]} 21. f4 {[%emt 0:03:29]} Rab8 {[%emt 0:01:34]} 22. Kg2 {[%emt 0:06:27]} Bxa1 {[%emt 0:04:44]} 23. Rxa1 {[%emt 0:00:07]} Kf8 {[%emt 0:00:30]} 24. Rc1 {[%emt 0:05:25]} Rc7 {[%emt 0:01:54]} 25. Bf3 {[%emt 0:03:55]} Rd8 {[%emt 0:02:08]} 26. Rcd1 {[%emt 0:02:13]} b6 {[%emt 0:02:18]} 27. e3 {[%emt 0:01:53]} a5 {[%emt 0:00:30]} 28. Kf2 {[%emt 0:00:56]} Rb8 {[%emt 0:01:10]} 29. Rb1 {[%emt 0:02:00]} Rd8 {[%emt 0:00:46]} 30. Ke2 {[%emt 0:00:21]} Ke8 {[%emt 0:00:40]} 31. Ke1 {[%emt 0:00:21]} Rb8 {[%emt 0:00:18]} 32. Kd1 {[%emt 0:00:38]} Kf8 {[%emt 0:00:22]} 33. Rf2 {[%emt 0:00:22]} e6 {[%emt 0:00:38]} 34. Rd2 {[%emt 0:00:14]} Ke7 {[%emt 0:00:08]} 35. Ke2 {[%emt 0:00:08]} Rd8 {[%emt 0:00:35]} 36. Rbd1 {[%emt 0:00:03]} Rcc8 {[%emt 0:01:37]} 37. Ke1 {[%emt 0:00:50]} Rc7 {[%emt 0:00:19]} 38. Rc1 {[%emt 0:01:17]} Nb8 {[%emt 0:00:36]} 39. Rcd1 {[%emt 0:00:13]} Nc6 {[%emt 0:00:26]} 40. Kf2 {[%emt 0:00:00]} Nb8 {[%emt 0:00:16]} 41. Ke2 {[%emt 0:05:51]} Rc5 {[%emt 0:05:11]} 42. h4 {[%emt 0:04:32]} Rcc8 {[%emt 0:05:51]} 43. Bg2 {[%emt 0:02:54]} Rc5 {[%emt 0:02:25]} 44. Rd4 {[%emt 0:04:33]} Rc7 {[%emt 0:02:06]} 45. Bf3 {[%emt 0:02:25]} Rc5 {[%emt 0:02:02]} 46. R1d2 {[%emt 0:02:37]} Nc6 {[%emt 0:02:29]} 47. Bxc6 {[%emt 0:00:27]} Rxc6 {[%emt 0:00:48]} 48. e4 {[%emt 0:00:13]} Rdc8 {[%emt 0:04:21]} 49. Ke3 {[%emt 0:00:26]} R8c7 {[%emt 0:00:56]} 50. f5 {[%emt 0:02:19]} Rd7 {[%emt 0:03:53]} 51. fxg6 {[%emt 0:01:47]} fxg6 {[%emt 0:00:18]} 52. Rf2 {[%emt 0:00:48]} Rd8 {[%emt 0:00:55]} 53. e5 {[%emt 0:01:10]} Rg8 {[%emt 0:01:05]} 54. Rfd2 {[%emt 0:00:45]} d5 {[%emt 0:01:44]} 55. cxd5 {[%emt 0:00:12]} exd5 {[%emt 0:00:19]} 56. Rxd5 {[%emt 0:00:04]} Rc3+ {[%emt 0:01:02]} 57. Ke4 {[%emt 0:00:09]} Rh3 {[%emt 0:00:48]} 58. Rd7+ {[%emt 0:00:06]} Kf8 {[%emt 0:00:43]} 59. e6 {[%emt 0:00:49]} Rxh4+ {[%emt 0:00:34]} 60. Ke5 {[%emt 0:00:11]} 1-0

[Event "ESTCC U65 2018"]
[Site "Walbrzych"]
[Date "2018.04.17"]
[Round "4"]
[White "Vinke, Dietmar"]
[Black "Baumbach, Friedrich"]
[Result "1/2-1/2"]
[ECO "D57"]
[WhiteElo "2170"]
[BlackElo "2172"]
[Annotator "NA"]
[PlyCount "85"]
[EventDate "2018.??.??"]
[EventCountry "POL"]
[SourceTitle "playchess.com"]
[Source "ChessBase"]
[SourceQuality "1"]
[WhiteTeam "Finland"]
[BlackTeam "Germany"]
[WhiteTeamCountry "FIN"]
[BlackTeamCountry "GER"]
[TimeControl "40/5400+30:1800+30"]

1. d4 {[%emt 0:00:00]} d5 {[%emt 0:00:13]} 2. c4 {[%emt 0:00:08]} e6 {[%emt 0:00:08]} 3. Nc3 {[%emt 0:00:06]} Nf6 {[%emt 0:00:08]} 4. Bg5 {[%emt 0:00:17]} Be7 {[%emt 0:00:11]} 5. e3 {[%emt 0:00:13]} O-O {[%emt 0:00:27]} 6. Nf3 {[%emt 0:01:05]} h6 {[%emt 0:00:32]} 7. Bh4 {[%emt 0:00:13]} Ne4 {[%emt 0:00:31]} 8. Bxe7 {[%emt 0:00:33]} Qxe7 {[%emt 0:00:14]} 9. cxd5 {[%emt 0:00:09]} Nxc3 {[%emt 0:00:13]} 10. bxc3 {[%emt 0:00:06]} exd5 {[%emt 0:00:11]} 11. Qb3 {[%emt 0:00:08]} Rd8 {[%emt 0:05:18]} 12. c4 {[%emt 0:00:45]} dxc4 {[%emt 0:00:58]} 13. Bxc4 {[%emt 0:00:06]} Nc6 {[%emt 0:01:12] LiveBook: 51 Games} 14. Be2 {[%emt 0:00:10]} b6 {[%emt 0:08:42] D57: Queen's Gambit Declined: Lasker Defence: Main line (9 cxd5)} 15. O-O {[%emt 0:00:44]} Bb7 {[%emt 0:00:28]} 16. Rac1 {[%emt 0:00:37]} Rac8 {[%emt 0:01:14]} 17. h3 {[%emt 0:00:33]} Na5 {[%emt 0:03:27]} 18. Qb2 {[%emt 0:00:10]} c5 {[%emt 0:04:04]} 19. dxc5 {[%emt 0:00:12]} Rxc5 {[%emt 0:01:59]} 20. Rxc5 {[%emt 0:00:06]} Qxc5 {[%emt 0:01:02]} 21. Rc1 {[%emt 0:00:06]} Qe7 {[%emt 0:04:27]} 22. Nd4 {[%emt 0:00:13] [#]} Qe5 $146 {[%emt 0:07:55]} 23. Qb4 {[%emt 0:58:28]} Rc8 $11 {[%emt 0:11:03]} 24. Rxc8+ {[%emt 0:01:09]} Bxc8 {[%emt 0:00:01]} 25. Qb5 {[%emt 0:07:03]} Qxb5 {[%emt 0:09:31]} 26. Nxb5 {[%emt 0:00:12]} Ba6 {[%emt 0:03:24]} 27. Kf1 {[%emt 0:00:08]} Bxb5 {[%emt 0:00:51]} 28. Bxb5 {[%emt 0:00:04]} Kf8 {[%emt 0:00:17]} 29. Ke2 {[%emt 0:00:47]} Ke7 {[%emt 0:00:17]} 30. Kd3 {[%emt 0:00:05]} Kd6 {[%emt 0:00:55]} 31. Be8 {[%emt 0:10:27]} Ke7 {[%emt 0:06:15]} 32. Bb5 {[%emt 0:00:17]} Kd6 {[%emt 0:01:26]} 33. Be8 {[%emt 0:00:07]} f6 {[%emt 0:02:19]} 34. Ke4 {[%emt 0:03:51]} Ke6 {[%emt 0:02:49]} 35. Bb5 {[%emt 0:00:41]} f5+ {[%emt 0:06:38]} 36. Kd4 {[%emt 0:00:36]} Kd6 {[%emt 0:00:33]} 37. f4 {[%emt 0:04:07]} Nc6+ {[%emt 0:03:37]} 38. Kc4 {[%emt 0:01:44]} Na5+ {[%emt 0:02:41]} 39. Kd4 {[%emt 0:00:08]} Nc6+ {[%emt 0:02:16]} 40. Kc4 {[%emt 0:00:09]} Na5+ {[%emt 0:02:47]} 41. Kd4 {[%emt 0:00:10]} Nc6+ {[%emt 0:00:12]} 42. Kc4 Nb8 43. Kd4 {Ke5+ Ke4+} 1/2-1/2